bitfinex/quotes_ETHUSD_20250129
["timestamp","ask_amount","ask_price","bid_price","bid_amount"]
[1738189469411,3.5312333,3143.4,3142.8,3.18184]
[1738189469611,3.5312333,3143.4,3142.9,0.0075]
[1738189470849,0.3499333,3143.4,3142.9,0.0075]
[1738189471048,0.3499333,3143.4,3142.9,3.18923]
[1738189471749,0.3499333,3143.4,3142.9,0.0075]
[1738189471935,0.3499333,3143.4,3142.9,3.18174]
[1738189475364,3.5312133,3143.4,3142.9,3.18174]
[1738189475759,0.3499333,3143.4,3142.9,3.18174]
[1738189477227,0.3499333,3143.4,3143.1,0.0075]
[1738189481372,3.18096,3143.7,3143.1,3.18151]
[1738189482775,3.18096,3143.7,3143.1,3.1815]
[1738189483670,3.0,3143.7,3143.3,0.0075]
[1738189484037,3.18097,3143.7,3143.3,0.0075]
[1738189484765,3.0,3143.8,3143.4,0.0075]
[1738189485144,6.18094,3143.8,3143.4,0.0075]
[1738189485351,7.159832,3143.8,3143.2,0.015]
[1738189485776,7.159832,3143.8,3143.2,3.19644]
[1738189486782,3.18099,3143.7,3143.2,3.19644]
[1738189487003,3.18099,3143.7,3142.9,3.18172]
[1738189487004,3.18125,3143.5,3142.9,3.18172]
[1738189487793,3.18125,3143.5,3142.7,3.9901]
[1738189487962,3.18152,3143.2,3142.7,0.8082]
[1738189488164,3.18173,3143.0,3142.4,0.8323]
[1738189488456,3.18173,3143.0,3142.5,0.0075]
[1738189489461,6.36349,3143.0,3142.5,0.0075]
[1738189489857,3.18194,3142.8,3142.5,0.0075]
[1738189490272,3.18203,3142.7,3142.3,0.015]
[1738189490702,3.18203,3142.7,3142.1,0.8323]
[1738189491534,3.18203,3142.7,3142.2,0.015]
[1738189493160,3.18218,3142.5,3142.2,0.0075]
[1738189494898,3.18238,3142.3,3141.8,3.93815]
[1738189495291,3.18238,3142.3,3141.9,0.015]
[1738189495504,3.18231,3142.4,3141.9,0.015]
[1738189495699,3.18238,3142.3,3141.9,0.015]
[1738189496284,3.1823,3142.4,3141.9,0.015]
[1738189496485,3.18238,3142.3,3141.9,0.015]
[1738189496688,3.1825,3142.2,3141.9,0.015]
[1738189497183,6.36507,3142.2,3141.9,0.015]
[1738189497576,3.1825,3142.2,3141.9,0.015]
[1738189497773,3.18259,3142.1,3141.9,0.0075]
[1738189497973,3.18259,3142.1,3141.6,0.0075]
[1738189497974,3.18268,3142.0,3141.6,0.0075]
[1738189498923,6.36546,3142.0,3141.5,0.7628]
[1738189499094,3.18268,3142.0,3141.5,0.7628]
[1738189499516,3.18279,3141.9,3141.5,0.7628]
[1738189500625,3.18291,3141.8,3141.5,0.7628]
[1738189501128,3.18299,3141.7,3141.5,0.7628]
[1738189501323,3.18291,3141.8,3141.5,0.7628]
[1738189502229,3.18304,3141.7,3141.2,0.7677]
[1738189502432,3.18291,3141.8,3141.2,0.7677]
[1738189502433,3.18309,3141.6,3141.2,0.7677]
[1738189502974,3.18291,3141.8,3141.3,0.015]
[1738189503427,3.18299,3141.7,3141.3,0.015]
[1738189508684,3.18291,3141.8,3141.3,0.015]
[1738189509631,3.18315,3141.6,3141.3,0.015]
[1738189509993,3.18291,3141.8,3141.3,0.015]
[1738189510454,3.18273,3142.0,3141.3,3.19089]
[1738189510927,3.18279,3141.9,3141.3,3.19089]
[1738189511329,3.18273,3142.0,3141.3,3.19089]
[1738189511539,3.18273,3142.0,3141.5,0.0075]
[1738189512366,3.1827,3142.0,3141.5,0.0075]
[1738189512659,6.36548,3142.0,3141.5,0.0075]
[1738189512956,3.1827,3142.0,3141.5,0.0075]
[1738189513166,3.1827,3142.0,3141.5,3.51723]
[1738189513471,3.0,3142.1,3141.5,3.51723]
[1738189513650,6.18259,3142.1,3141.9,0.0075]
[1738189513818,3.18259,3142.1,3141.9,0.0075]
[1738189514352,3.18254,3142.2,3141.9,0.015]
[1738189515840,3.18254,3142.2,3141.9,0.414317]
[1738189516046,3.18254,3142.2,3141.9,0.0075]
[1738189516353,3.18268,3142.0,3141.9,0.0075]
[1738189518946,3.18304,3141.7,3141.2,0.7653]
[1738189519121,3.18328,3141.5,3141.2,0.7653]
[1738189519523,3.18328,3141.5,3141.3,0.0075]
[1738189519818,3.18329,3141.4,3141.3,0.0075]
[1738189520044,3.1834,3141.3,3141.0,0.015]
[1738189520445,3.18359,3141.1,3141.0,0.0075]
[1738189520646,3.18386,3140.9,3140.6,0.8034]
[1738189521470,3.18386,3140.9,3140.4,0.63659625]
[1738189521666,0.4272,3141.4,3140.4,0.63659625]
[1738189521667,3.18406,3140.7,3140.4,0.63659625]
[1738189521835,6.36816,3140.7,3140.4,0.63659625]
[1738189522165,3.4272,3140.6,3139.2,3.18544]
[1738189522459,3.18503,3139.7,3139.0,4.6589662]
[1738189522969,3.18503,3139.7,3139.1,0.015]
[1738189523126,3.18518,3139.6,3139.1,0.015]
[1738189523326,3.18522,3139.5,3139.1,0.015]
[1738189523862,3.18552,3139.2,3139.0,0.8218]
[1738189524086,3.18552,3139.2,3139.1,0.0075]
[1738189524723,3.18583,3138.9,3138.6,1.443995]
[1738189525229,3.18561,3139.2,3138.7,0.0075]
[1738189525230,3.18567,3139.1,3138.7,0.0075]
[1738189525456,3.18574,3139.0,3138.7,0.0075]
[1738189525960,3.0,3139.4,3138.7,0.015]
[1738189526172,6.18539,3139.4,3138.7,3.6654695]
[1738189527271,0.65322724,3140.0,3137.8,0.7787]
[1738189527272,0.4272,3139.2,3137.8,0.7787]
[1738189527472,3.1861,3138.7,3138.1,0.63888251]
[1738189527772,3.18615,3138.6,3138.1,0.63888251]
[1738189527972,3.1861,3138.7,3138.1,0.63888251]
[1738189528179,3.18613,3138.6,3138.2,0.015]
[1738189528326,3.18623,3138.5,3138.2,0.0075]
[1738189528726,3.18623,3138.5,3138.0,0.015]
[1738189529199,3.18659,3138.2,3137.3,3.98345]
[1738189529511,3.18698,3137.8,3137.4,0.015]
[1738189529806,3.18705,3137.7,3137.3,0.796]
[1738189530190,3.18705,3137.7,3137.2,0.0075]
[1738189530692,3.18705,3137.7,3137.1,0.005]
[1738189530868,3.18705,3137.7,3137.1,0.0125]
[1738189531081,0.4272,3138.4,3137.7,0.015]
[1738189531281,3.18631,3138.5,3137.7,0.015]
[1738189531602,3.18631,3138.5,3137.9,0.0075]
[1738189532298,3.18631,3138.5,3137.9,0.015]
[1738189532593,0.4272,3138.9,3137.9,3.522751]
[1738189532800,3.18625,3138.5,3137.9,3.522751]
[1738189533207,3.18593,3138.8,3137.9,3.522751]
[1738189533208,3.18609,3138.7,3137.9,3.522751]
[1738189533400,3.0,3138.7,3137.9,3.522751]
[1738189533706,3.18622,3138.6,3137.9,3.522751]
[1738189534209,3.18625,3138.5,3137.9,3.522751]
[1738189535900,6.18605,3138.7,3137.9,3.522751]
[1738189536103,3.18615,3138.6,3137.9,3.522751]
[1738189536506,3.18623,3138.5,3137.9,3.522751]
[1738189539427,1.275757,3139.5,3137.9,3.522751]
[1738189539428,0.4272,3139.2,3138.0,1.1682751]
[1738189539589,0.4272,3139.2,3138.3,0.015]
[1738189540317,3.18591,3138.9,3138.3,0.015]
[1738189541703,3.18594,3138.8,3138.3,0.015]
[1738189541880,3.18608,3138.7,3138.0,4.00273]
[1738189542077,3.18608,3138.7,3138.1,3.18663]
[1738189542591,3.18608,3138.7,3138.2,0.015]
[1738189542907,3.18608,3138.7,3138.4,0.0075]
[1738189543102,3.18585,3138.9,3138.4,0.0075]
[1738189543308,3.18596,3138.8,3138.4,0.0075]
[1738189544397,3.18603,3138.7,3138.4,0.0075]
[1738189544826,3.18536,3139.4,3138.6,3.20106]
[1738189544991,3.18512,3139.6,3138.7,0.015]
[1738189545191,3.1852,3139.6,3139.0,3.97395]
[1738189545427,3.1852,3139.6,3139.0,0.7883]
[1738189545609,3.18523,3139.5,3139.0,0.7883]
[1738189549039,6.37054,3139.5,3139.0,0.7883]
[1738189549333,3.18523,3139.5,3139.0,0.7883]
[1738189549504,3.0,3139.6,3139.0,0.7883]
[1738189549710,3.18528,3139.5,3139.0,0.7883]
[1738189549907,3.0,3140.0,3139.0,0.7883]
[1738189550229,3.18514,3139.6,3139.0,0.7883]
[1738189550433,3.18537,3139.4,3139.0,0.7883]
[1738189557977,3.18516,3139.6,3139.0,3.97393]
[1738189558148,3.18516,3139.6,3139.0,0.7883]
[1738189558348,3.18522,3139.5,3139.0,0.7883]
[1738189559594,3.18538,3139.4,3139.0,0.7883]
[1738189562679,3.18543,3139.3,3139.0,0.7883]
[1738189562878,0.318543,3139.2,3138.7,0.7848]
[1738189563218,3.18578,3139.0,3138.8,0.015]
[1738189563708,3.18582,3138.9,3138.4,0.827]
[1738189564009,3.1862,3138.6,3138.1,0.827]
[1738189564176,3.1862,3138.6,3138.2,0.015]
[1738189564909,3.18634,3138.4,3138.2,0.015]
[1738189565083,3.18643,3138.3,3137.8,0.827]
[1738189565283,3.18664,3138.1,3137.8,0.827]
[1738189565595,3.18674,3138.0,3137.8,0.827]
[1738189565801,3.18674,3138.0,3137.9,0.0075]
[1738189567117,3.18704,3137.7,3137.4,0.827]
[1738189567442,6.37417,3137.7,3137.4,0.827]
[1738189567645,3.18725,3137.5,3137.3,0.63671653]
[1738189567857,3.18735,3137.4,3137.1,0.8317]
[1738189568157,3.18735,3137.4,3137.2,0.0075]
[1738189569854,3.18735,3137.4,3137.1,0.005]
[1738189570152,3.18755,3137.2,3137.1,0.005]
[1738189577750,3.82504,3137.2,3137.1,0.005]
[1738189577924,4.25224,3137.2,3137.1,0.005]
[1738189579928,7.25224,3137.2,3137.1,0.005]
[1738189581931,3.0,3137.2,3137.1,0.005]
[1738189583041,3.18735,3137.4,3137.1,0.005]
[1738189583679,3.0,3137.5,3137.2,0.0075]
[1738189584574,3.18718,3137.6,3137.2,0.0075]
[1738189585989,3.0,3137.7,3137.4,0.0075]
[1738189588376,1.703274,3138.5,3137.6,0.015]
[1738189588588,6.37296,3138.3,3137.6,3.20207]
[1738189588801,3.18643,3138.3,3137.6,3.20207]
[1738189590016,3.18643,3138.3,3137.8,0.0075]
[1738189590186,3.18643,3138.3,3137.9,0.7694]
[1738189590387,3.0,3138.4,3138.0,0.015]
[1738189590724,3.18587,3138.9,3138.2,3.20146]
[1738189590884,3.18595,3138.8,3138.2,3.20146]
[1738189591216,3.18595,3138.8,3138.4,0.015]
[1738189591925,3.18635,3138.4,3138.2,0.0075]
[1738189592689,3.18643,3138.3,3138.2,0.0075]
[1738189592891,3.18617,3138.6,3138.2,0.0075]
[1738189593098,3.18634,3138.4,3138.2,0.0075]
[1738189598341,3.18591,3138.9,3138.4,0.7679]
[1738189600815,3.18599,3138.8,3138.4,0.7679]
[1738189602034,3.18611,3138.7,3138.4,0.7604]
[1738189605604,3.18619,3138.6,3138.4,0.7604]
[1738189607494,0.318619,3138.6,3138.4,0.0075]
[1738189607699,0.318619,3138.6,3137.8,0.62800514]
[1738189607700,3.18635,3138.4,3137.8,3.18687]
[1738189607899,3.18635,3138.4,3137.9,0.015]
[1738189608236,6.37278,3138.4,3137.9,0.015]
[1738189608443,3.18635,3138.4,3137.9,0.015]
[1738189608943,6.37239,3138.6,3137.9,3.20183]
[1738189609153,3.18617,3138.6,3138.1,0.0075]
[1738189609509,3.18617,3138.6,3138.3,0.0075]
[1738189609740,3.18598,3138.8,3138.3,0.0075]
[1738189609923,3.18598,3138.8,3138.3,0.015]
[1738189613459,0.661184,3139.9,3138.3,0.015]
[1738189613460,3.1857,3139.1,3138.5,3.20115]
[1738189613760,3.1857,3139.1,3138.7,0.0075]
[1738189615365,3.18553,3139.2,3138.7,0.0075]
[1738189616358,3.18563,3139.1,3138.7,0.0075]
[1738189617068,3.18553,3139.2,3138.7,0.0075]
[1738189617725,3.18553,3139.2,3138.7,0.015]
[1738189618635,3.18563,3139.1,3138.7,0.015]
[1738189620433,3.18525,3139.5,3139.0,0.8165]
[1738189620758,3.18515,3139.6,3139.1,0.015]
[1738189621737,3.18523,3139.5,3139.1,0.015]
[1738189622440,3.18488,3139.9,3139.4,0.015]
[1738189622643,3.0,3139.8,3139.4,3.2003]
[1738189622825,3.18462,3140.1,3139.6,0.0075]
[1738189623026,3.0,3139.9,3139.5,0.0075]
[1738189623444,3.18482,3139.9,3139.5,0.0075]
[1738189623746,3.18484,3139.9,3139.3,3.20041]
[1738189623987,3.18484,3139.9,3139.3,3.917373]
[1738189624555,3.18472,3140.0,3139.4,3.18525]
[1738189624760,3.18459,3140.2,3139.5,3.20012]
[1738189624950,3.0,3140.2,3139.5,3.20012]
[1738189625151,3.18461,3140.1,3139.7,0.015]
[1738189625459,3.0,3140.2,3139.9,0.0075]
[1738189626792,6.18457,3140.2,3139.9,0.0075]
[1738189627915,3.18462,3140.1,3139.9,0.0075]
[1738189628205,6.18451,3140.2,3139.9,0.0075]
[1738189628563,3.18399,3140.8,3140.4,0.0075]
[1738189628811,3.18395,3140.8,3140.4,0.0075]
[1738189629108,3.18381,3140.9,3140.4,0.0075]
[1738189629272,3.0,3140.9,3140.4,0.0075]
[1738189629483,6.18382,3140.9,3140.4,0.0075]
[1738189629857,3.18392,3140.8,3140.4,0.0075]
[1738189631354,1.701999,3141.8,3140.7,0.015]
[1738189631555,3.18349,3141.3,3140.9,0.0075]
[1738189633150,3.0,3141.4,3140.9,0.0075]
[1738189633667,3.1834,3141.3,3140.9,0.0075]
[1738189634282,3.0,3141.4,3140.9,0.0075]
[1738189634558,3.0,3141.4,3141.0,0.0075]
[1738189634779,6.1833,3141.4,3141.0,0.0075]
[1738189634976,0.4272,3141.6,3140.9,0.0075]
[1738189635669,3.18385,3140.9,3140.6,0.0075]
[1738189637191,3.18363,3141.1,3140.6,0.015]
[1738189637358,3.18363,3141.1,3140.6,0.414096]
[1738189637878,1.07337647,3142.3,3141.0,0.7918]
[1738189638069,0.33101604,3142.7,3141.9,0.015]
[1738189638070,3.18237,3142.4,3141.9,0.015]
[1738189638269,0.33101604,3142.7,3142.1,0.0075]
[1738189638470,0.33101604,3142.7,3142.1,3.19003]
[1738189638670,0.33101604,3142.7,3141.6,3.08310269]
[1738189638873,3.18169,3143.0,3142.5,0.7918]
[1738189639160,3.18165,3143.1,3142.5,0.7918]
[1738189639161,3.18178,3142.9,3142.5,0.7918]
[1738189639791,3.18188,3142.8,3142.5,0.7918]
[1738189640024,0.41425308,3142.8,3142.2,0.7917]
[1738189640311,3.0,3143.5,3140.6,0.49803014]
[1738189640312,3.18238,3142.3,3141.6,3.18308]
[1738189640469,6.36486,3142.3,3141.7,0.015]
[1738189640678,3.18248,3142.2,3141.7,0.015]
[1738189641195,3.18263,3142.1,3141.6,0.015]
[1738189641489,3.18296,3141.8,3141.6,0.0075]
[1738189642132,3.18288,3141.9,3141.6,0.0075]
[1738189645239,3.73225,3142.5,3141.7,0.0075]
[1738189645240,3.0,3142.3,3141.7,0.0075]
[1738189645401,3.0,3142.3,3141.9,0.0075]
[1738189645600,3.18258,3142.1,3141.9,0.0075]
[1738189646024,3.18258,3142.1,3141.6,0.015]
[1738189646218,3.18239,3142.3,3141.6,0.015]
[1738189646435,6.36486,3142.3,3141.6,3.19801]
[1738189646658,3.18239,3142.3,3141.6,3.19801]
[1738189647018,3.18249,3142.2,3141.6,3.19801]
[1738189647828,3.18239,3142.3,3141.6,6.38103]
[1738189648041,3.18239,3142.3,3141.8,0.0075]
[1738189649325,3.1822,3142.5,3142.0,0.0075]
[1738189649526,0.4272,3142.9,3142.0,0.0075]
[1738189649527,3.18209,3142.6,3142.3,0.0075]
[1738189649753,3.18188,3142.8,3142.3,0.015]
[1738189650061,3.18215,3142.6,3142.3,0.0075]
[1738189650937,3.18218,3142.5,3142.3,0.0075]
[1738189651135,3.18215,3142.6,3142.3,0.0075]
[1738189652243,3.1819,3142.8,3142.3,0.0075]
[1738189652643,3.18198,3142.7,3142.3,0.0075]
[1738189652840,3.1819,3142.8,3142.3,0.0075]
[1738189653046,3.1819,3142.8,3142.3,3.18988]
[1738189654068,6.18186,3142.9,3142.3,3.18988]
[1738189654242,0.33082808,3142.8,3142.3,3.18988]
[1738189654443,3.51270808,3142.8,3142.3,3.18988]
[1738189655168,3.51270808,3142.8,3142.3,0.0075]
[1738189658465,3.51270808,3142.8,3142.3,3.18986]
[1738189659628,3.51270808,3142.8,3142.6,0.8053]
[1738189659629,0.33082808,3142.8,3142.6,0.8053]
[1738189660433,0.33082808,3142.8,3142.7,3.18947]
[1738189660757,0.33082808,3142.8,3142.7,0.7978]
[1738189660987,0.33082808,3142.8,3142.7,3.97977]
[1738189661189,0.33082808,3142.8,3142.7,1.51474]
[1738189661382,0.33082808,3142.8,3142.7,0.0075]
[1738189661592,3.51269808,3142.8,3142.7,0.0075]
[1738189663318,3.18254,3142.2,3141.8,0.7598]
[1738189663462,3.18254,3142.2,3141.8,1.38054628]
[1738189663774,3.18254,3142.2,3141.9,0.0075]
[1738189664871,3.18267,3142.1,3141.9,0.0075]
[1738189665491,3.18242,3142.3,3141.9,0.0075]
[1738189665687,3.18218,3142.5,3141.9,0.0075]
[1738189665899,3.18202,3142.7,3142.1,3.18249]
[1738189666669,6.36408,3142.7,3142.1,3.18249]
[1738189666866,3.18213,3142.6,3142.1,3.18249]
[1738189669489,0.33082808,3142.8,3142.2,0.7996]
[1738189669703,3.51269808,3142.8,3142.2,0.7846]
[1738189670005,3.51269808,3142.8,3142.2,3.96707]
[1738189670385,3.51269808,3142.8,3142.3,0.0075]
[1738189670702,3.18228,3142.4,3142.3,0.0075]
[1738189670904,3.18228,3142.4,3141.9,0.7846]
[1738189671074,3.18238,3142.3,3141.9,0.7846]
[1738189671468,3.18228,3142.4,3142.0,0.0075]
[1738189674988,6.36465,3142.4,3142.0,0.0075]
[1738189675215,3.18228,3142.4,3142.0,0.0075]
[1738189677199,3.51276808,3142.8,3142.2,3.18992]
[1738189677415,0.33082808,3142.8,3142.2,3.18992]
[1738189677579,0.33082808,3142.8,3142.2,3.1899]
[1738189677780,3.51270808,3142.8,3142.2,3.1899]
[1738189680118,0.33082808,3142.8,3142.5,0.0075]
[1738189680481,3.51270808,3142.8,3142.5,0.0075]
[1738189683032,0.33082808,3142.8,3142.5,0.0075]
[1738189683712,3.51273808,3142.8,3142.5,0.0075]
[1738189686283,0.33082808,3142.8,3142.5,0.0075]
[1738189686485,3.51275808,3142.8,3142.5,0.0075]
[1738189687537,0.33082808,3142.8,3142.5,0.417154]
[1738189687716,0.33082808,3142.8,3142.7,3.19697]
[1738189691238,0.33082808,3142.8,3142.7,0.015]
[1738189692440,0.33082808,3142.8,3142.7,3.19697]
[1738189692639,0.33082808,3142.8,3142.7,0.015]
[1738189692803,0.33082808,3142.8,3142.7,3.19697]
[1738189692997,0.33082808,3142.8,3142.7,3.912938]
[1738189696328,3.1815,3143.2,3142.7,3.912938]
[1738189696490,3.51263438,3143.2,3142.7,3.912938]
[1738189697592,0.33113438,3143.2,3142.9,0.015]
[1738189699526,3.51267438,3143.2,3142.7,0.715968]
[1738189699844,3.18175,3143.0,3142.8,0.0075]
[1738189700041,3.18158,3143.1,3142.8,0.0075]
[1738189700341,0.33113438,3143.2,3142.7,0.015]
[1738189700548,0.33113438,3143.2,3142.8,3.96651]
[1738189700696,0.33113438,3143.2,3142.9,0.396651]
[1738189701545,0.33113438,3143.2,3143.0,0.015]
[1738189704483,0.33113438,3143.2,3143.0,3.19663]
[1738189705059,3.18111,3143.6,3143.0,3.19663]
[1738189705377,3.18111,3143.6,3143.1,0.015]
[1738189706113,6.36226,3143.6,3143.1,0.015]
[1738189706310,3.18111,3143.6,3143.1,0.015]
[1738189706468,6.36226,3143.6,3143.1,0.43762351]
[1738189707011,3.18111,3143.6,3143.1,0.43762351]
[1738189707308,3.18128,3143.4,3143.1,0.43762351]
[1738189707497,3.18128,3143.4,3143.1,0.015]
[1738189708558,3.1812,3143.5,3143.3,0.0075]
[1738189709087,3.18114,3143.6,3143.3,0.0075]
[1738189710074,6.3623,3143.6,3143.3,0.0075]
[1738189710984,3.18114,3143.6,3143.3,0.0075]
[1738189711302,6.36229,3143.6,3143.3,0.0075]
[1738189711897,3.18114,3143.6,3143.3,0.0075]
[1738189712095,3.18113,3143.6,3143.1,0.0075]
[1738189712415,0.4272,3143.6,3142.9,0.396651]
[1738189712596,0.4272,3143.6,3142.8,3.96816]
[1738189712597,3.18131,3143.4,3142.8,3.96816]
[1738189712758,3.18131,3143.4,3142.9,0.015]
[1738189713198,3.18137,3143.3,3142.9,0.015]
[1738189713403,3.18131,3143.4,3142.9,0.015]
[1738189714067,3.18131,3143.4,3142.9,0.0075]
[1738189716996,3.18131,3143.4,3142.9,3.18927]
[1738189718268,3.18131,3143.4,3142.9,0.0075]
[1738189718590,3.18131,3143.4,3142.9,3.18923]
[1738189720101,3.6083,3143.6,3142.9,3.18923]
[1738189720435,3.6083,3143.6,3143.1,0.0075]
[1738189720573,0.33110653,3143.5,3143.1,0.0075]
[1738189721018,0.33110653,3143.5,3143.1,3.18157]
[1738189721188,0.33110653,3143.5,3143.0,0.0075]
[1738189721391,3.51227653,3143.5,3143.0,0.0075]
[1738189722119,0.33110653,3143.5,3143.0,3.18914]
[1738189724176,0.33110653,3143.5,3143.1,3.18154]
[1738189724380,0.33110653,3143.5,3143.2,0.0075]
[1738189736574,0.68232718,3143.5,3143.2,0.0075]
[1738189740389,0.4272,3143.4,3142.8,0.7863]
[1738189740690,3.18154,3143.2,3142.5,3.95522]
[1738189740985,3.18154,3143.2,3142.6,0.015]
[1738189741127,3.18154,3143.2,3142.6,3.19706]
[1738189741331,3.18137,3143.3,3142.6,3.19706]
[1738189741562,3.18137,3143.3,3142.8,0.0075]
[1738189741765,3.18148,3143.2,3142.8,0.0075]
[1738189741932,3.57533765,3143.3,3142.8,0.0075]
[1738189742133,3.18159,3143.1,3142.6,3.18206]
[1738189743146,3.18159,3143.1,3142.7,0.0075]
[1738189744083,3.18159,3143.1,3142.8,0.29826811]
[1738189746151,3.18159,3143.1,3142.6,0.0075]
[1738189748722,3.18159,3143.1,3142.8,0.0075]
[1738189750726,3.18159,3143.1,3142.6,0.0075]
[1738189752835,3.51269307,3143.1,3142.6,0.0075]
[1738189753928,0.33110307,3143.1,3142.6,3.18956]
[1738189754129,0.33110307,3143.1,3142.7,0.0075]
[1738189754282,0.33110307,3143.1,3143.0,3.19667]
[1738189754488,0.33110307,3143.1,3143.0,0.015]
[1738189754895,0.33110307,3143.1,3143.0,3.19667]
[1738189756391,0.33110307,3143.1,3143.0,3.49471421]
[1738189758318,0.33110307,3143.1,3143.0,4.38158787]
[1738189759548,0.33110307,3143.1,3143.0,5.15178787]
[1738189759961,0.4272,3143.4,3143.0,5.14428787]
[1738189760248,0.4272,3143.4,3143.1,0.0075]
[1738189760821,0.4272,3143.4,3143.1,3.18905]
[1738189761754,3.18104,3143.7,3143.1,3.18905]
[1738189761908,0.4272,3143.6,3143.1,3.18905]
[1738189762948,0.4272,3143.6,3143.1,0.0075]
[1738189763304,3.96914,3143.6,3143.1,0.0075]
[1738189763784,3.18143,3143.3,3142.7,0.8221]
[1738189764095,3.18143,3143.3,3142.8,0.0075]
[1738189764298,3.18157,3143.2,3142.8,0.0075]
[1738189764599,3.18157,3143.1,3142.8,0.0075]
[1738189766198,3.499573,3143.3,3142.8,0.0075]
[1738189766589,3.18174,3143.0,3142.8,0.0075]
[1738189767052,3.18174,3143.0,3142.4,1.47255366]
[1738189767257,3.18174,3143.0,3142.4,0.8217]
[1738189767693,3.18174,3143.0,3142.5,0.0075]
[1738189768002,3.18174,3143.0,3142.5,0.30549721]
[1738189769603,3.18174,3143.0,3142.6,0.29799721]
[1738189771308,0.55,3143.1,3142.6,0.29799721]
[1738189771611,3.73159,3143.1,3142.5,3.18965]
[1738189771824,4.4974323,3143.1,3142.5,3.18965]
[1738189772175,0.55,3143.1,3142.6,3.18206]
[1738189772576,3.73158,3143.1,3142.6,3.18206]
[1738189772922,3.73158,3143.1,3142.7,0.29796853]
[1738189774479,3.73158,3143.1,3142.5,3.18959]
[1738189775210,3.73158,3143.1,3142.5,6.3717]
[1738189775516,3.51310597,3143.0,3142.5,3.18959]
[1738189776015,3.51310597,3143.0,3142.6,0.29797896]
[1738189777015,0.33140597,3143.0,3142.5,3.18959]
[1738189777317,0.33140597,3143.0,3142.5,3.73216424]
[1738189778230,0.33140597,3143.0,3142.5,6.91426424]
[1738189778550,0.33140597,3143.0,3142.6,0.63570288]
[1738189779045,0.33140597,3143.0,3142.6,3.81776288]
[1738189779821,0.33140597,3143.0,3142.7,0.819]
[1738189780146,0.55,3143.1,3142.7,1.11696144]
[1738189781729,0.55,3143.1,3142.8,0.29796144]
[1738189783057,3.73157,3143.1,3142.8,0.29796144]
[1738189783354,0.55,3143.1,3142.8,0.29796144]
[1738189783852,0.55,3143.1,3142.7,0.819]
[1738189784052,6.78986,3143.4,3142.7,0.819]
[1738189784352,6.78985,3143.4,3142.8,3.18186]
[1738189785169,0.55,3143.3,3142.8,3.18186]
[1738189785471,3.73137,3143.3,3142.8,3.18186]
[1738189786381,0.55,3143.3,3142.8,3.96371629]
[1738189786576,3.18131,3143.4,3142.8,3.96367629]
[1738189786742,3.18131,3143.4,3142.9,3.18173]
[1738189791568,3.18131,3143.4,3142.8,0.78185629]
[1738189791874,3.18131,3143.4,3142.8,3.96372629]
[1738189792375,3.18077,3143.9,3143.1,0.0075]
[1738189792376,3.18096,3143.7,3143.1,0.0075]
[1738189792562,3.18096,3143.7,3143.1,3.189]
[1738189794016,3.18096,3143.7,3143.0,0.8184]
[1738189794217,3.18119,3143.5,3143.1,0.44784326]
[1738189794539,3.18096,3143.7,3143.2,0.29809282]
[1738189795392,0.33140358,3143.6,3143.2,0.29809282]
[1738189796531,0.33140358,3143.6,3143.1,3.62940326]
[1738189797030,0.33140358,3143.6,3143.2,0.8027]
[1738189797233,3.18096,3143.7,3143.2,0.8027]
[1738189798548,0.55,3143.7,3143.2,0.8027]
[1738189798761,0.4272,3143.8,3143.3,0.44320933]
[1738189798900,3.18081,3143.9,3143.3,0.44320933]
[1738189799252,0.55,3144.0,3143.4,4.00505]
[1738189799419,3.73093,3143.8,3143.4,0.8238]
[1738189799621,0.88138797,3143.8,3143.4,0.8238]
[1738189800433,4.06225797,3143.8,3143.4,0.8238]
[1738189801419,3.18099,3143.7,3143.4,0.8238]
[1738189801628,3.60819,3143.7,3143.1,0.8198]
[1738189801806,3.18116,3143.6,3143.1,0.8123]
[1738189802906,3.60817,3143.7,3143.1,0.8123]
[1738189803137,4.06231797,3143.8,3143.1,3.99387]
[1738189804352,0.88138797,3143.8,3143.5,0.8123]
[1738189804557,0.33138797,3143.8,3143.7,3.18096]
[1738189804769,0.1,3145.3,3143.9,3.18071]
[1738189804770,0.4272,3144.6,3143.9,3.18071]
[1738189804929,3.18021,3144.5,3144.0,0.8104]
[1738189805262,0.4272,3144.9,3144.2,3.18038]
[1738189805468,0.7589185,3145.3,3144.6,3.17997]
[1738189805810,0.7589185,3145.3,3144.7,3.17992]
[1738189806018,4.39917598,3145.3,3144.7,3.17992]
[1738189806244,4.39917598,3145.3,3144.6,3.17997]
[1738189806611,3.72947,3145.2,3144.6,3.17997]
[1738189808660,3.72947,3145.2,3144.5,0.8104]
[1738189808865,3.72947,3145.2,3144.5,3.99049]
[1738189809166,3.17955,3145.1,3144.5,3.99049]
[1738189809319,3.72947,3145.2,3144.5,0.8104]
[1738189809520,3.17955,3145.1,3144.5,3.99053]
[1738189809715,3.17969,3145.0,3144.5,0.8104]
[1738189809937,0.55,3144.7,3144.2,0.7934]
[1738189811059,3.60712,3144.8,3144.2,3.9738]
[1738189811578,3.17997,3144.7,3144.2,3.9738]
[1738189814770,3.17979,3144.9,3144.2,3.9738]
[1738189814973,6.35962,3144.9,3144.2,3.9738]
[1738189817274,3.17985,3144.8,3144.2,3.9738]
[1738189819141,3.17985,3144.8,3144.2,7.15419]